[Event "*** Titled Tuesday Blitz"]
[Site "Chess.com"]
[Date "2020.05.19"]
[Round "5"]
[White "Bagirova"]
[Black "baby_leo"]
[Result "1-0"]
[WhiteElo "2187"]
[BlackElo "2003"]
[TimeControl "180+1"]
[EndTime "12:58:20 PDT"]
[Termination "Bagirova won on time"]

1. e4 {[%clk 0:03:00.9]} 1... c6 {[%clk 0:02:56.6]} 2. Nf3 {[%clk 0:02:59.5]}
2... d5 {[%clk 0:02:54.9]} 3. Nc3 {[%clk 0:02:56.9]} 3... dxe4 {[%clk
0:02:53.8]} 4. Nxe4 {[%clk 0:02:56]} 4... Nf6 {[%clk 0:02:54.7]} 5. Nxf6+ {[%clk
0:02:54.3]} 5... exf6 {[%clk 0:02:53.1]} 6. d4 {[%clk 0:02:53.9]} 6... Bd6
{[%clk 0:02:52.1]} 7. Bc4 {[%clk 0:02:49.4]} 7... Qc7 {[%clk 0:02:49.8]} 8. h3
{[%clk 0:02:47]} 8... Bf5 {[%clk 0:02:44.5]} 9. O-O {[%clk 0:02:46.1]} 9... O-O
{[%clk 0:02:33.1]} 10. c3 {[%clk 0:02:45.4]} 10... Nd7 {[%clk 0:02:25.6]} 11.
Nh4 {[%clk 0:02:35.7]} 11... Be4 {[%clk 0:02:09.8]} 12. f3 {[%clk 0:02:32.1]}
12... Bg6 {[%clk 0:01:48.5]} 13. Nxg6 {[%clk 0:02:28.6]} 13... hxg6 {[%clk
0:01:44.3]} 14. Qd3 {[%clk 0:02:28.3]} 14... f5 {[%clk 0:01:37.2]} 15. h4 {[%clk
0:02:19.6]} 15... c5 {[%clk 0:01:30.8]} 16. Bb3 {[%clk 0:02:11]} 16... Rad8
{[%clk 0:01:27.8]} 17. h5 {[%clk 0:02:06]} 17... cxd4 {[%clk 0:01:12.2]} 18.
cxd4 {[%clk 0:01:59.3]} 18... Nc5 {[%clk 0:01:02.3]} 19. Qc4 {[%clk 0:01:43.9]}
19... Nxb3 {[%clk 0:00:55.2]} 20. Qxb3 {[%clk 0:01:44.1]} 20... Bh2+ {[%clk
0:00:47.2]} 21. Kh1 {[%clk 0:01:41.1]} 21... Rxd4 {[%clk 0:00:43.3]} 22. Bg5
{[%clk 0:01:37.3]} 22... gxh5 {[%clk 0:00:38.9]} 23. f4 {[%clk 0:01:33.5]} 23...
Bxf4 {[%clk 0:00:35]} 24. Bxf4 {[%clk 0:01:28.3]} 24... Rxf4 {[%clk 0:00:35.9]}
25. Rxf4 {[%clk 0:01:26.7]} 25... Qxf4 {[%clk 0:00:36.8]} 26. Qxb7 {[%clk
0:01:23]} 26... Rd8 {[%clk 0:00:26.5]} 27. Qf3 {[%clk 0:01:19.7]} 27... Qh4+
{[%clk 0:00:20.4]} 28. Qh3 {[%clk 0:01:17.6]} 28... Qxh3+ {[%clk 0:00:18.2]} 29.
gxh3 {[%clk 0:01:16.9]} 29... Rd2 {[%clk 0:00:19.1]} 30. b4 {[%clk 0:01:15.7]}
30... Rb2 {[%clk 0:00:17.9]} 31. a3 {[%clk 0:01:13.1]} 31... g6 {[%clk
0:00:17.9]} 32. Kg1 {[%clk 0:01:08.1]} 32... Kg7 {[%clk 0:00:17.5]} 33. h4
{[%clk 0:01:07.6]} 33... Kf6 {[%clk 0:00:17.3]} 34. Re1 {[%clk 0:01:03]} 34...
g5 {[%clk 0:00:15.4]} 35. hxg5+ {[%clk 0:01:01.7]} 35... Kxg5 {[%clk 0:00:16.3]}
36. Re7 {[%clk 0:01:01.4]} 36... Kf6 {[%clk 0:00:15]} 37. Rxa7 {[%clk
0:01:00.6]} 37... h4 {[%clk 0:00:13]} 38. Ra8 {[%clk 0:00:58.5]} 38... h3 {[%clk
0:00:12.7]} 39. Rh8 {[%clk 0:00:58.6]} 39... Rb3 {[%clk 0:00:10.9]} 40. b5
{[%clk 0:00:52.5]} 40... Rxa3 {[%clk 0:00:08.2]} 41. b6 {[%clk 0:00:51.5]} 41...
Rb3 {[%clk 0:00:08]} 42. Rh6+ {[%clk 0:00:48.6]} 42... Kg5 {[%clk 0:00:06.7]}
43. Rh8 {[%clk 0:00:41.4]} 43... Rxb6 {[%clk 0:00:06.8]} 44. Rxh3 {[%clk
0:00:40.3]} 44... Rb2 {[%clk 0:00:06]} 45. Rh8 {[%clk 0:00:39.2]} 45... Kf4
{[%clk 0:00:05.7]} 46. Rg8 {[%clk 0:00:35.3]} 46... Kf3 {[%clk 0:00:05.4]} 47.
Rg5 {[%clk 0:00:29.3]} 47... f4 {[%clk 0:00:05.2]} 48. Rg8 {[%clk 0:00:27.3]}
48... Rb1+ {[%clk 0:00:05.2]} 49. Kh2 {[%clk 0:00:25.3]} 49... Kf2 {[%clk
0:00:05.4]} 50. Rg2+ {[%clk 0:00:24]} 50... Kf3 {[%clk 0:00:04.8]} 51. Rg7
{[%clk 0:00:22.7]} 51... f5 {[%clk 0:00:05.2]} 52. Rg5 {[%clk 0:00:22.1]} 52...
Rb2+ {[%clk 0:00:01.2]} 53. Kh3 {[%clk 0:00:19.9]} 53... Rb1 {[%clk 0:00:02.1]}
54. Kh2 {[%clk 0:00:19.6]} 54... Rb2+ {[%clk 0:00:02.4]} 55. Kh3 {[%clk
0:00:19.4]} 55... Rb8 {[%clk 0:00:02.1]} 56. Kh2 {[%clk 0:00:18.4]} 56... Rb1
{[%clk 0:00:02.6]} 57. Kh3 {[%clk 0:00:17.9]} 57... Rb2 {[%clk 0:00:03.1]} 58.
Rg1 {[%clk 0:00:16.1]} 58... Rf2 {[%clk 0:00:02.4]} 59. Kh4 {[%clk 0:00:15.3]}
59... Rg2 {[%clk 0:00:00.9]} 60. Rf1+ {[%clk 0:00:14.2]} 60... Rf2 {[%clk
0:00:01.3]} 61. Ra1 {[%clk 0:00:13.2]} 1-0

[Event "*** Titled Tuesday Blitz"]
[Site "Chess.com"]
[Date "2020.05.19"]
[Round "5"]
[White "dosto07"]
[Black "The_Machine04"]
[Result "1-0"]
[WhiteElo "2119"]
[BlackElo "2264"]
[TimeControl "180+1"]
[EndTime "12:58:21 PDT"]
[Termination "dosto07 won on time"]

1. e4 {[%clk 0:03:00.9]} 1... d6 {[%clk 0:02:56]} 2. d4 {[%clk 0:03:00]} 2...
Nf6 {[%clk 0:02:55.5]} 3. Nc3 {[%clk 0:03:00.4]} 3... e5 {[%clk 0:02:54.1]} 4.
Nf3 {[%clk 0:02:59.4]} 4... Nbd7 {[%clk 0:02:51.2]} 5. Bc4 {[%clk 0:02:59.3]}
5... Be7 {[%clk 0:02:49.6]} 6. O-O {[%clk 0:02:59]} 6... c6 {[%clk 0:02:47.3]}
7. a4 {[%clk 0:02:57.7]} 7... a5 {[%clk 0:02:46.6]} 8. Re1 {[%clk 0:02:55]} 8...
Qc7 {[%clk 0:02:46.8]} 9. b3 {[%clk 0:02:43.4]} 9... h6 {[%clk 0:02:45.2]} 10.
Bb2 {[%clk 0:02:42.4]} 10... Nf8 {[%clk 0:02:44.6]} 11. Bd3 {[%clk 0:02:40.1]}
11... Ng6 {[%clk 0:02:44]} 12. Ne2 {[%clk 0:02:39.3]} 12... Bg4 {[%clk
0:02:36.4]} 13. Ng3 {[%clk 0:02:34.5]} 13... O-O {[%clk 0:02:30.7]} 14. h3
{[%clk 0:02:30]} 14... Be6 {[%clk 0:02:26.6]} 15. Qd2 {[%clk 0:02:18.5]} 15...
Rfe8 {[%clk 0:02:14.9]} 16. Rad1 {[%clk 0:02:15.7]} 16... Rad8 {[%clk
0:02:13.5]} 17. c4 {[%clk 0:02:14.5]} 17... Bf8 {[%clk 0:02:02]} 18. Bc3 {[%clk
0:02:03.9]} 18... b6 {[%clk 0:02:00.3]} 19. Qb2 {[%clk 0:02:03]} 19... Bc8
{[%clk 0:01:43.6]} 20. Nf5 {[%clk 0:01:38.9]} 20... c5 {[%clk 0:00:48.3]} 21.
dxe5 {[%clk 0:01:25.7]} 21... dxe5 {[%clk 0:00:48.1]} 22. Bc2 {[%clk 0:01:22.6]}
22... Bb7 {[%clk 0:00:46.2]} 23. Rxd8 {[%clk 0:01:02.3]} 23... Qxd8 {[%clk
0:00:45.2]} 24. Nxe5 {[%clk 0:00:57.9]} 24... Nxe5 {[%clk 0:00:19.7]} 25. Bxe5
{[%clk 0:00:57.5]} 25... Qd2 {[%clk 0:00:19.5]} 26. Rd1 {[%clk 0:00:46.8]} 26...
Qg5 {[%clk 0:00:16.8]} 27. Bxf6 {[%clk 0:00:39.5]} 27... Qxf6 {[%clk 0:00:16.1]}
28. Qxf6 {[%clk 0:00:38.6]} 28... gxf6 {[%clk 0:00:17]} 29. f3 {[%clk
0:00:38.7]} 29... Bc8 {[%clk 0:00:16.6]} 30. Ne3 {[%clk 0:00:36.3]} 30... Be6
{[%clk 0:00:16]} 31. Kf2 {[%clk 0:00:35.1]} 31... Be7 {[%clk 0:00:15.4]} 32. f4
{[%clk 0:00:29.2]} 32... Rd8 {[%clk 0:00:12.8]} 33. Nd5 {[%clk 0:00:25.4]} 33...
Bxd5 {[%clk 0:00:12.3]} 34. exd5 {[%clk 0:00:24]} 34... Bd6 {[%clk 0:00:12.4]}
35. g3 {[%clk 0:00:22.8]} 35... Re8 {[%clk 0:00:12.6]} 36. Kf3 {[%clk
0:00:20.2]} 36... Kg7 {[%clk 0:00:11.8]} 37. Bf5 {[%clk 0:00:15.1]} 37... Re7
{[%clk 0:00:11.7]} 38. Kf2 {[%clk 0:00:14.1]} 38... Re8 {[%clk 0:00:10.6]} 39.
Re1 {[%clk 0:00:14.1]} 39... Rxe1 {[%clk 0:00:10.2]} 40. Kxe1 {[%clk 0:00:14.2]}
40... Kf8 {[%clk 0:00:10.7]} 41. Ke2 {[%clk 0:00:14.4]} 41... Kg7 {[%clk
0:00:11.1]} 42. Kf3 {[%clk 0:00:13.7]} 42... Kf8 {[%clk 0:00:11.3]} 43. Kg4
{[%clk 0:00:13.8]} 43... Kg7 {[%clk 0:00:11.4]} 44. Kh5 {[%clk 0:00:13.8]} 44...
Bc7 {[%clk 0:00:11.6]} 45. Bd7 {[%clk 0:00:13.9]} 45... Bd6 {[%clk 0:00:11.5]}
46. Bc6 {[%clk 0:00:14.1]} 46... Bc7 {[%clk 0:00:11.8]} 47. h4 {[%clk
0:00:14.2]} 47... Bd6 {[%clk 0:00:11.5]} 48. Kg4 {[%clk 0:00:14.9]} 48... Bc7
{[%clk 0:00:10.7]} 49. Bd7 {[%clk 0:00:13.8]} 49... Kg6 {[%clk 0:00:09]} 50.
Bf5+ {[%clk 0:00:12.2]} 50... Kg7 {[%clk 0:00:09.1]} 51. Kh5 {[%clk 0:00:12.8]}
51... Bd6 {[%clk 0:00:08.7]} 52. Bg4 {[%clk 0:00:12.5]} 52... Bc7 {[%clk
0:00:08.6]} 53. Bh3 {[%clk 0:00:13.4]} 53... Bd6 {[%clk 0:00:08.6]} 54. Kg4
{[%clk 0:00:13.5]} 54... Bc7 {[%clk 0:00:07.7]} 55. Kf5 {[%clk 0:00:13.5]} 55...
Bd6 {[%clk 0:00:07.2]} 56. Bg4 {[%clk 0:00:13.5]} 56... Bc7 {[%clk 0:00:07.2]}
57. Bh5 {[%clk 0:00:13.6]} 57... Bd6 {[%clk 0:00:06.8]} 58. Ke4 {[%clk
0:00:13.8]} 58... Bc7 {[%clk 0:00:06.6]} 59. d6 {[%clk 0:00:13.8]} 59... Bxd6
{[%clk 0:00:06.8]} 60. Kd5 {[%clk 0:00:14.7]} 60... Bc7 {[%clk 0:00:06.7]} 61.
Kc6 {[%clk 0:00:15.3]} 61... Bd8 {[%clk 0:00:07]} 62. Kd7 {[%clk 0:00:15.3]}
62... f5 {[%clk 0:00:05.7]} 63. Kxd8 {[%clk 0:00:14.7]} 63... Kf6 {[%clk
0:00:04.2]} 64. Kc7 {[%clk 0:00:15.2]} 64... Ke6 {[%clk 0:00:04.4]} 65. Kxb6
{[%clk 0:00:15.3]} 1-0

[Event "*** Titled Tuesday Blitz"]
[Site "Chess.com"]
[Date "2020.05.19"]
[Round "5"]
[White "Arjun2002"]
[Black "ChristopherYoo"]
[Result "1/2-1/2"]
[WhiteElo "2679"]
[BlackElo "2877"]
[TimeControl "180+1"]
[EndTime "12:58:22 PDT"]
[Termination "Game drawn by repetition"]

1. e4 {[%clk 0:03:00.9]} 1... c5 {[%clk 0:02:57]} 2. Nf3 {[%clk 0:03:00.5]} 2...
e6 {[%clk 0:02:57.6]} 3. d4 {[%clk 0:02:59.7]} 3... cxd4 {[%clk 0:02:58.5]} 4.
Nxd4 {[%clk 0:03:00.6]} 4... Nf6 {[%clk 0:02:58.7]} 5. Nc3 {[%clk 0:02:59.6]}
5... Nc6 {[%clk 0:02:59.1]} 6. Ndb5 {[%clk 0:02:59.8]} 6... Bc5 {[%clk
0:02:58.9]} 7. Nd6+ {[%clk 0:02:54.2]} 7... Ke7 {[%clk 0:02:58.7]} 8. Bf4 {[%clk
0:02:43.1]} 8... e5 {[%clk 0:02:57.4]} 9. Nf5+ {[%clk 0:02:42.4]} 9... Kf8
{[%clk 0:02:57.5]} 10. Bg5 {[%clk 0:02:39.4]} 10... d6 {[%clk 0:02:56.6]} 11.
Ne3 {[%clk 0:02:31.1]} 11... h6 {[%clk 0:02:49.8]} 12. Bxf6 {[%clk 0:02:30.9]}
12... Qxf6 {[%clk 0:02:50.1]} 13. Ncd5 {[%clk 0:02:29.8]} 13... Qg5 {[%clk
0:02:35]} 14. c3 {[%clk 0:02:25.7]} 14... Be6 {[%clk 0:02:17.5]} 15. Qf3 {[%clk
0:02:17.5]} 15... Rc8 {[%clk 0:01:42.7]} 16. h4 {[%clk 0:02:11.7]} 16... Qg6
{[%clk 0:01:40.6]} 17. g3 {[%clk 0:02:06.3]} 17... h5 {[%clk 0:00:56.7]} 18. Bh3
{[%clk 0:01:59.5]} 18... Bxh3 {[%clk 0:00:54.2]} 19. Rxh3 {[%clk 0:01:59.3]}
19... Qe6 {[%clk 0:00:54]} 20. Rh1 {[%clk 0:01:54.9]} 20... g6 {[%clk
0:00:50.7]} 21. Kf1 {[%clk 0:01:47.8]} 21... Kg7 {[%clk 0:00:44]} 22. Kg2 {[%clk
0:01:48.3]} 22... Bxe3 {[%clk 0:00:38.5]} 23. Qxe3 {[%clk 0:01:45.3]} 23... f5
{[%clk 0:00:33.2]} 24. Rad1 {[%clk 0:01:41.9]} 24... Rhf8 {[%clk 0:00:30.8]} 25.
exf5 {[%clk 0:01:36.4]} 25... Rxf5 {[%clk 0:00:31.7]} 26. Rd2 {[%clk 0:01:30.7]}
26... Rcf8 {[%clk 0:00:30.6]} 27. Qe4 {[%clk 0:01:29.4]} 27... Qf7 {[%clk
0:00:16.3]} 28. Rf1 {[%clk 0:01:19.9]} 28... g5 {[%clk 0:00:14.3]} 29. Ne3
{[%clk 0:01:12.6]} 29... Rf3 {[%clk 0:00:08.6]} 30. hxg5 {[%clk 0:01:12.3]}
30... h4 {[%clk 0:00:06.6]} 31. Qxh4 {[%clk 0:00:33.3]} 31... Rh8 {[%clk
0:00:06.7]} 32. Qg4 {[%clk 0:00:30.4]} 32... Rf8 {[%clk 0:00:05.9]} 33. g6
{[%clk 0:00:21.9]} 33... Qf6 {[%clk 0:00:06.1]} 34. Qh5 {[%clk 0:00:20.5]} 34...
Rh8 {[%clk 0:00:02.2]} 35. Qxf3 {[%clk 0:00:20.2]} 35... Rh2+ {[%clk 0:00:01.8]}
36. Kxh2 {[%clk 0:00:20.6]} 36... Qxf3 {[%clk 0:00:02.7]} 37. Rxd6 {[%clk
0:00:20.1]} 37... e4 {[%clk 0:00:02.8]} 38. Kg1 {[%clk 0:00:17.6]} 38... Ne5
{[%clk 0:00:03.2]} 39. Rfd1 {[%clk 0:00:16.1]} 39... Qh5 {[%clk 0:00:03.4]} 40.
Rd7+ {[%clk 0:00:08]} 40... Nxd7 {[%clk 0:00:03.2]} 41. Rxd7+ {[%clk 0:00:07.9]}
41... Kxg6 {[%clk 0:00:03.9]} 42. Rxb7 {[%clk 0:00:08.2]} 42... Qe2 {[%clk
0:00:04.1]} 43. c4 {[%clk 0:00:05.9]} 43... Kg5 {[%clk 0:00:02.3]} 44. c5 {[%clk
0:00:05]} 44... Qe1+ {[%clk 0:00:01.8]} 45. Kg2 {[%clk 0:00:05]} 45... Qc1
{[%clk 0:00:02]} 46. b4 {[%clk 0:00:05.2]} 46... a5 {[%clk 0:00:01.7]} 47. bxa5
{[%clk 0:00:04.7]} 47... Qxc5 {[%clk 0:00:02.2]} 48. a6 {[%clk 0:00:05.2]} 48...
Qa3 {[%clk 0:00:02.6]} 49. a7 {[%clk 0:00:05.3]} 49... Qxa2 {[%clk 0:00:03.2]}
50. Re7 {[%clk 0:00:05.4]} 50... Kf6 {[%clk 0:00:02.5]} 51. Rb7 {[%clk
0:00:05.6]} 51... Kg6 {[%clk 0:00:02.1]} 52. g4 {[%clk 0:00:06]} 52... Kg5
{[%clk 0:00:02.3]} 53. Kg3 {[%clk 0:00:05.8]} 53... Qa1 {[%clk 0:00:02.2]} 54.
Rb5+ {[%clk 0:00:05.3]} 54... Kg6 {[%clk 0:00:02.2]} 55. Rb7 {[%clk 0:00:05.5]}
55... Qg1+ {[%clk 0:00:02]} 56. Kf4 {[%clk 0:00:05.9]} 56... Qxf2+ {[%clk
0:00:02.1]} 57. Kxe4 {[%clk 0:00:05.9]} 57... Qa2 {[%clk 0:00:02.6]} 58. Nd5
{[%clk 0:00:05.1]} 58... Qa4+ {[%clk 0:00:02]} 59. Ke5 {[%clk 0:00:05.3]} 59...
Qa1+ {[%clk 0:00:02.1]} 60. Kd6 {[%clk 0:00:05.5]} 60... Qa6+ {[%clk 0:00:01.7]}
61. Kc7 {[%clk 0:00:05.3]} 61... Qc4+ {[%clk 0:00:02.1]} 62. Kb8 {[%clk
0:00:04.9]} 62... Qxd5 {[%clk 0:00:02.6]} 63. a8=Q {[%clk 0:00:05.1]} 63... Qd8+
{[%clk 0:00:02.4]} 64. Ka7 {[%clk 0:00:04.8]} 64... Qa5+ {[%clk 0:00:03.3]} 65.
Kb8 {[%clk 0:00:05]} 65... Qd8+ {[%clk 0:00:04.2]} 66. Ka7 {[%clk 0:00:05]}
66... Qa5+ {[%clk 0:00:05.1]} 67. Kb8 {[%clk 0:00:05.4]} 67... Qd8+ {[%clk
0:00:06]} 1/2-1/2

[Event "*** Titled Tuesday Blitz"]
[Site "Chess.com"]
[Date "2020.05.19"]
[Round "5"]
[White "Tolya2"]
[Black "miruna_daria28"]
[Result "1/2-1/2"]
[WhiteElo "2470"]
[BlackElo "2273"]
[TimeControl "180+1"]
[EndTime "12:58:28 PDT"]
[Termination "Game drawn - insufficient material"]

1. Nf3 {[%clk 0:03:00.9]} 1... Nf6 {[%clk 0:02:57.7]} 2. d4 {[%clk 0:02:59.9]}
2... e6 {[%clk 0:02:53.3]} 3. c4 {[%clk 0:02:57.8]} 3... b6 {[%clk 0:02:50.4]}
4. g3 {[%clk 0:02:57.1]} 4... Bb7 {[%clk 0:02:48.5]} 5. Bg2 {[%clk 0:02:56.8]}
5... c5 {[%clk 0:02:48.2]} 6. Nc3 {[%clk 0:02:54.7]} 6... Be7 {[%clk 0:02:46.1]}
7. d5 {[%clk 0:02:53.3]} 7... exd5 {[%clk 0:02:44.1]} 8. cxd5 {[%clk 0:02:53.4]}
8... d6 {[%clk 0:02:44.1]} 9. O-O {[%clk 0:02:52.5]} 9... O-O {[%clk 0:02:43.4]}
10. e4 {[%clk 0:02:52.4]} 10... Nbd7 {[%clk 0:02:41.6]} 11. a4 {[%clk
0:02:51.8]} 11... a6 {[%clk 0:02:37.5]} 12. Re1 {[%clk 0:02:51]} 12... Qc7
{[%clk 0:02:31.9]} 13. Nd2 {[%clk 0:02:43.6]} 13... c4 {[%clk 0:02:20.8]} 14.
Nf3 {[%clk 0:02:38.4]} 14... Ng4 {[%clk 0:02:09.3]} 15. Nd4 {[%clk 0:02:35.7]}
15... Nge5 {[%clk 0:02:03.7]} 16. Be3 {[%clk 0:02:27.7]} 16... Bf6 {[%clk
0:01:55.6]} 17. h3 {[%clk 0:02:23.5]} 17... g6 {[%clk 0:01:52.6]} 18. f4 {[%clk
0:02:14.5]} 18... Nd3 {[%clk 0:01:51]} 19. Re2 {[%clk 0:02:14.7]} 19... N7c5
{[%clk 0:01:36.2]} 20. Kh2 {[%clk 0:02:09.5]} 20... Rab8 {[%clk 0:01:23.4]} 21.
Rb1 {[%clk 0:02:06.1]} 21... Ba8 {[%clk 0:01:11.7]} 22. Bg1 {[%clk 0:02:02.8]}
22... Qd7 {[%clk 0:01:06.4]} 23. Nc6 {[%clk 0:01:52.2]} 23... Bxc6 {[%clk
0:01:01]} 24. dxc6 {[%clk 0:01:51.2]} 24... Qc8 {[%clk 0:00:59.4]} 25. Nd5
{[%clk 0:01:48.1]} 25... Bd8 {[%clk 0:00:57]} 26. Rc2 {[%clk 0:01:44.3]} 26...
b5 {[%clk 0:00:54.7]} 27. axb5 {[%clk 0:01:43.4]} 27... axb5 {[%clk 0:00:54.4]}
28. Qd2 {[%clk 0:01:35.8]} 28... Qxc6 {[%clk 0:00:53]} 29. Qc3 {[%clk
0:01:31.4]} 29... Qe8 {[%clk 0:00:46.6]} 30. Re2 {[%clk 0:01:25.9]} 30... f6
{[%clk 0:00:31.7]} 31. Rf1 {[%clk 0:01:12.4]} 31... Qf7 {[%clk 0:00:29.9]} 32.
Bd4 {[%clk 0:01:01.2]} 32... Rb7 {[%clk 0:00:27.3]} 33. e5 {[%clk 0:00:56.1]}
33... Ra7 {[%clk 0:00:14.8]} 34. exf6 {[%clk 0:00:50.4]} 34... Na4 {[%clk
0:00:11.4]} 35. Qd2 {[%clk 0:00:46.5]} 35... Nac5 {[%clk 0:00:10.6]} 36. Qe3
{[%clk 0:00:40.3]} 36... Rd7 {[%clk 0:00:08.4]} 37. Ne7+ {[%clk 0:00:39.2]}
37... Bxe7 {[%clk 0:00:08.3]} 38. fxe7 {[%clk 0:00:39.1]} 38... Re8 {[%clk
0:00:08.7]} 39. Bc6 {[%clk 0:00:32.9]} 39... Rdxe7 {[%clk 0:00:08.8]} 40. Qd2
{[%clk 0:00:33]} 40... Rxe2+ {[%clk 0:00:08.3]} 41. Rf2 {[%clk 0:00:30.5]} 41...
Rxd2 {[%clk 0:00:09.2]} 42. Rxd2 {[%clk 0:00:30.4]} 42... Rc8 {[%clk 0:00:08.5]}
43. Bg2 {[%clk 0:00:29.3]} 43... Nxf4 {[%clk 0:00:09.4]} 44. Bf3 {[%clk
0:00:22.1]} 44... Nxh3 {[%clk 0:00:08.9]} 45. Bg2 {[%clk 0:00:17.4]} 45... Re8
{[%clk 0:00:08.8]} 46. Bxc5 {[%clk 0:00:16.6]} 46... dxc5 {[%clk 0:00:07.9]} 47.
Bd5 {[%clk 0:00:16.4]} 47... Qxd5 {[%clk 0:00:07.2]} 48. Rxd5 {[%clk 0:00:15.8]}
48... Re2+ {[%clk 0:00:08.1]} 49. Kxh3 {[%clk 0:00:14.9]} 49... Rxb2 {[%clk
0:00:09]} 50. Rxc5 {[%clk 0:00:15.2]} 50... c3 {[%clk 0:00:09.9]} 51. Rxc3
{[%clk 0:00:14]} 51... b4 {[%clk 0:00:10.8]} 52. Rc7 {[%clk 0:00:13.7]} 52... b3
{[%clk 0:00:10.8]} 53. Kg4 {[%clk 0:00:13]} 53... Rb1 {[%clk 0:00:11.2]} 54. Kg5
{[%clk 0:00:12.9]} 54... b2 {[%clk 0:00:12.1]} 55. Rb7 {[%clk 0:00:08.5]} 55...
Rg1 {[%clk 0:00:11.5]} 56. Rxb2 {[%clk 0:00:05.7]} 56... Rxg3+ {[%clk
0:00:12.1]} 57. Kf6 {[%clk 0:00:05.6]} 57... Rf3+ {[%clk 0:00:11.9]} 58. Kg5
{[%clk 0:00:05.6]} 58... Kg7 {[%clk 0:00:11.5]} 59. Rb7+ {[%clk 0:00:03.9]}
59... Rf7 {[%clk 0:00:11.2]} 60. Rb6 {[%clk 0:00:03.8]} 60... h6+ {[%clk
0:00:11.1]} 61. Kg4 {[%clk 0:00:03.8]} 61... g5 {[%clk 0:00:11]} 62. Kh5 {[%clk
0:00:03.8]} 62... Rf1 {[%clk 0:00:05]} 63. Rg6+ {[%clk 0:00:03.3]} 63... Kf7
{[%clk 0:00:05]} 64. Rxh6 {[%clk 0:00:03.4]} 64... Rh1+ {[%clk 0:00:05.5]} 65.
Kxg5 {[%clk 0:00:04]} 65... Rxh6 {[%clk 0:00:06.4]} 66. Kxh6 {[%clk 0:00:04]}
1/2-1/2

[Event "*** Titled Tuesday Blitz"]
[Site "Chess.com"]
[Date "2020.05.19"]
[Round "5"]
[White "LizaSolovyova"]
[Black "Baby_Legs"]
[Result "0-1"]
[WhiteElo "2544"]
[BlackElo "2715"]
[TimeControl "180+1"]
[EndTime "12:58:29 PDT"]
[Termination "Baby_Legs won by resignation"]

1. d4 {[%clk 0:03:00.1]} 1... d5 {[%clk 0:02:59.5]} 2. Nc3 {[%clk 0:03:00.2]}
2... e6 {[%clk 0:03:00]} 3. e4 {[%clk 0:03:00.2]} 3... Bb4 {[%clk 0:02:58.8]} 4.
exd5 {[%clk 0:02:58.1]} 4... exd5 {[%clk 0:02:58.6]} 5. Qf3 {[%clk 0:02:56.9]}
5... Be6 {[%clk 0:02:54.2]} 6. Bd2 {[%clk 0:02:53.4]} 6... Qf6 {[%clk
0:02:46.9]} 7. O-O-O {[%clk 0:02:46.8]} 7... Nd7 {[%clk 0:02:37.5]} 8. Nxd5
{[%clk 0:02:31.3]} 8... Bxd2+ {[%clk 0:02:26.4]} 9. Rxd2 {[%clk 0:02:30.7]} 9...
Bxd5 {[%clk 0:02:21.1]} 10. Qxd5 {[%clk 0:02:30]} 10... O-O-O {[%clk 0:02:17.6]}
11. Nf3 {[%clk 0:02:18.1]} 11... Nh6 {[%clk 0:02:07.1]} 12. Bd3 {[%clk
0:02:05.7]} 12... Rhe8 {[%clk 0:02:04]} 13. Rhd1 {[%clk 0:02:00.3]} 13... Nb6
{[%clk 0:01:43.5]} 14. Qa5 {[%clk 0:01:58.9]} 14... Kb8 {[%clk 0:01:42.9]} 15.
h3 {[%clk 0:01:56.2]} 15... Ng8 {[%clk 0:01:39.3]} 16. Bxh7 {[%clk 0:01:29.4]}
16... Nc4 {[%clk 0:01:37.1]} 17. Qb4 {[%clk 0:01:23.1]} 17... Nxd2 {[%clk
0:01:36.7]} 18. Rxd2 {[%clk 0:01:22.9]} 18... Ne7 {[%clk 0:01:32.4]} 19. Be4
{[%clk 0:01:21.9]} 19... Nd5 {[%clk 0:01:30.1]} 20. Bxd5 {[%clk 0:01:21.3]}
20... Rxd5 {[%clk 0:01:31]} 21. c4 {[%clk 0:01:20.3]} 21... Rd6 {[%clk
0:01:26.9]} 22. Ne5 {[%clk 0:01:12.5]} 22... Red8 {[%clk 0:01:14.5]} 23. c5
{[%clk 0:01:07.9]} 23... Re6 {[%clk 0:01:04.6]} 24. c6 {[%clk 0:00:59.3]} 24...
Rxc6+ {[%clk 0:00:58.2]} 25. Nxc6+ {[%clk 0:00:58.9]} 25... Qxc6+ {[%clk
0:00:59.1]} 26. Qc5 {[%clk 0:00:43.7]} 26... Qxg2 {[%clk 0:00:56.4]} 27. Qe7
{[%clk 0:00:42.9]} 27... Qc6+ {[%clk 0:00:47.6]} 28. Rc2 {[%clk 0:00:41.1]}
28... Qh1+ {[%clk 0:00:46.6]} 29. Kd2 {[%clk 0:00:39.7]} 29... Rxd4+ {[%clk
0:00:40.4]} 30. Kc3 {[%clk 0:00:32.7]} 30... Qd5 {[%clk 0:00:34.7]} 31. Qe8+
{[%clk 0:00:18.6]} 31... Qd8 {[%clk 0:00:34.6]} 32. Re2 {[%clk 0:00:18.8]} 32...
Rd3+ {[%clk 0:00:26.8]} 33. Kc2 {[%clk 0:00:16.7]} 33... Rd2+ {[%clk 0:00:09.7]}
34. Kc3 {[%clk 0:00:16.4]} 34... Kc8 {[%clk 0:00:07.1]} 35. Qxd8+ {[%clk
0:00:12.6]} 35... Rxd8 {[%clk 0:00:08]} 36. Re7 {[%clk 0:00:12.8]} 36... Rf8
{[%clk 0:00:08.5]} 37. Kd4 {[%clk 0:00:11.7]} 37... Kd8 {[%clk 0:00:09]} 38. Re5
{[%clk 0:00:11.6]} 38... Rh8 {[%clk 0:00:09.4]} 39. Re3 {[%clk 0:00:10.9]} 39...
Rh4+ {[%clk 0:00:09.3]} 40. Kd3 {[%clk 0:00:11.2]} 40... Kd7 {[%clk 0:00:09.5]}
41. b3 {[%clk 0:00:11.1]} 41... Rf4 {[%clk 0:00:09.3]} 42. Ke2 {[%clk
0:00:10.3]} 42... a5 {[%clk 0:00:09.7]} 43. Rg3 {[%clk 0:00:10.4]} 43... g6
{[%clk 0:00:09.5]} 44. Rc3 {[%clk 0:00:10.4]} 44... c6 {[%clk 0:00:09]} 45. Ke3
{[%clk 0:00:10]} 45... Rh4 {[%clk 0:00:08]} 46. Ke2 {[%clk 0:00:10.2]} 46... b5
{[%clk 0:00:08.3]} 47. a3 {[%clk 0:00:09]} 47... a4 {[%clk 0:00:08.5]} 48. bxa4
{[%clk 0:00:07.3]} 48... Rxa4 {[%clk 0:00:09.4]} 49. Kf3 {[%clk 0:00:06.4]}
49... Ke6 {[%clk 0:00:09.4]} 50. Kg3 {[%clk 0:00:06.3]} 50... Rc4 {[%clk
0:00:08.8]} 51. Re3+ {[%clk 0:00:06.2]} 51... Kd5 {[%clk 0:00:08.8]} 52. Rf3
{[%clk 0:00:06.5]} 52... f5 {[%clk 0:00:08.3]} 53. Rd3+ {[%clk 0:00:06.2]} 53...
Rd4 {[%clk 0:00:08.2]} 54. Rc3 {[%clk 0:00:06.2]} 54... c5 {[%clk 0:00:08.6]}
55. h4 {[%clk 0:00:06.5]} 55... b4 {[%clk 0:00:08.8]} 56. axb4 {[%clk
0:00:06.3]} 56... cxb4 {[%clk 0:00:09.7]} 57. Rc8 {[%clk 0:00:06.2]} 57... b3
{[%clk 0:00:09.9]} 58. Rb8 {[%clk 0:00:06.4]} 58... Kc4 {[%clk 0:00:10]} 59. Rb6
{[%clk 0:00:06.5]} 59... Rd5 {[%clk 0:00:08.6]} 60. Rxg6 {[%clk 0:00:05.5]}
60... b2 {[%clk 0:00:09]} 61. Rc6+ {[%clk 0:00:04.8]} 61... Rc5 {[%clk
0:00:08.5]} 62. Rb6 {[%clk 0:00:04.5]} 62... Rb5 {[%clk 0:00:08.8]} 63. Rc6+
{[%clk 0:00:04.9]} 63... Kd5 {[%clk 0:00:09]} 64. Rc8 {[%clk 0:00:04.4]} 64...
b1=Q {[%clk 0:00:09.1]} 65. Rd8+ {[%clk 0:00:05.3]} 65... Ke6 {[%clk 0:00:09.2]}
0-1